[Event "*** SCC Grand Prix: Titled Tuesday Blitz"]
[Site "Chess.com"]
[Date "2020.07.21"]
[Round "3"]
[White "saisree"]
[Black "bgfbfbgfbgfgf"]
[Result "0-1"]
[WhiteElo "2401"]
[BlackElo "2630"]
[TimeControl "180+1"]
[EndTime "10:27:40 PDT"]
[Termination "bgfbfbgfbgfgf won by resignation"]

1. Nf3 {[%clk 0:03:00.9]} 1... Nf6 {[%clk 0:02:59.5]} 2. e3 {[%clk 0:03:00.9]}
2... g6 {[%clk 0:02:58.6]} 3. b3 {[%clk 0:02:59.8]} 3... Bg7 {[%clk 0:02:58.7]}
4. Bb2 {[%clk 0:03:00.5]} 4... O-O {[%clk 0:02:58.9]} 5. c4 {[%clk 0:02:58.9]}
5... b6 {[%clk 0:02:56.9]} 6. Qc2 {[%clk 0:02:53.4]} 6... Bb7 {[%clk 0:02:56.2]}
7. Be2 {[%clk 0:02:52.4]} 7... c5 {[%clk 0:02:51.5]} 8. O-O {[%clk 0:02:46.4]}
8... d5 {[%clk 0:02:51.4]} 9. d4 {[%clk 0:02:44.3]} 9... cxd4 {[%clk 0:02:51]}
10. Nxd4 {[%clk 0:02:42]} 10... Nbd7 {[%clk 0:02:50.8]} 11. Nd2 {[%clk
0:02:39.2]} 11... Rc8 {[%clk 0:02:50.9]} 12. Rac1 {[%clk 0:02:35.7]} 12... a6
{[%clk 0:02:48.2]} 13. Qb1 {[%clk 0:02:34.6]} 13... e5 {[%clk 0:02:46.9]} 14.
N4f3 {[%clk 0:02:33.2]} 14... Qe7 {[%clk 0:02:47]} 15. Qa1 {[%clk 0:02:31.7]}
15... e4 {[%clk 0:02:43.8]} 16. Nd4 {[%clk 0:02:28.7]} 16... Nc5 {[%clk
0:02:37.6]} 17. Rfd1 {[%clk 0:02:20.1]} 17... Nd3 {[%clk 0:02:33.8]} 18. Bxd3
{[%clk 0:02:16.2]} 18... exd3 {[%clk 0:02:34.7]} 19. N2f3 {[%clk 0:02:13.9]}
19... dxc4 {[%clk 0:02:34.9]} 20. bxc4 {[%clk 0:02:10.2]} 20... Qe4 {[%clk
0:02:33.3]} 21. Qb1 {[%clk 0:02:01.7]} 21... Qg4 {[%clk 0:02:31.3]} 22. h3
{[%clk 0:01:59]} 22... Qh5 {[%clk 0:02:30.2]} 23. Qxd3 {[%clk 0:01:58.1]} 23...
Ne4 {[%clk 0:02:29.7]} 24. Qe2 {[%clk 0:01:53]} 24... Rfe8 {[%clk 0:02:25.5]}
25. Ba1 {[%clk 0:01:42.2]} 25... Bh6 {[%clk 0:02:18.5]} 26. Nb3 {[%clk
0:01:34.8]} 26... f6 {[%clk 0:01:35.8]} 27. Nbd4 {[%clk 0:01:08.9]} 27... Nxf2
{[%clk 0:01:32.7]} 28. Kxf2 {[%clk 0:01:04.5]} 28... Bxe3+ {[%clk 0:01:31.6]}
29. Qxe3 {[%clk 0:01:04.6]} 29... Rxe3 {[%clk 0:01:31.6]} 30. Kxe3 {[%clk
0:01:05.3]} 30... Qa5 {[%clk 0:01:27.2]} 31. Rd2 {[%clk 0:01:00.9]} 31... Qa3+
{[%clk 0:01:05.9]} 32. Rc3 {[%clk 0:01:00.5]} 32... Qc5 {[%clk 0:01:06.5]} 33.
Ke2 {[%clk 0:00:57.3]} 33... Re8+ {[%clk 0:00:59.1]} 34. Kf1 {[%clk 0:00:57.3]}
34... Qb4 {[%clk 0:00:59.5]} 35. Rc1 {[%clk 0:00:52.9]} 35... h5 {[%clk
0:00:55.9]} 36. Rdd1 {[%clk 0:00:49.9]} 36... Be4 {[%clk 0:00:53.4]} 37. Ne2
{[%clk 0:00:47.6]} 37... Qc5 {[%clk 0:00:46.1]} 38. Bd4 {[%clk 0:00:45.4]} 38...
Qa5 {[%clk 0:00:43.4]} 39. c5 {[%clk 0:00:40.2]} 39... bxc5 {[%clk 0:00:35.7]}
40. Rxc5 {[%clk 0:00:40.3]} 40... Qxa2 {[%clk 0:00:34.8]} 41. Ra1 {[%clk
0:00:40.8]} 41... Qb3 {[%clk 0:00:33.6]} 42. Rc3 {[%clk 0:00:40.5]} 42... Qb5
{[%clk 0:00:32.8]} 43. Kf2 {[%clk 0:00:39.2]} 43... Bxf3 {[%clk 0:00:32.6]} 44.
Nf4 {[%clk 0:00:29.8]} 44... Qb2+ {[%clk 0:00:32.3]} 45. Kxf3 {[%clk 0:00:26.6]}
45... Qxa1 {[%clk 0:00:32.2]} 46. Rd3 {[%clk 0:00:25.7]} 0-1

[Event "*** SCC Grand Prix: Titled Tuesday Blitz"]
[Site "Chess.com"]
[Date "2020.07.21"]
[Round "3"]
[White "Riptide27"]
[Black "swimmerchess"]
[Result "0-1"]
[WhiteElo "2515"]
[BlackElo "2807"]
[TimeControl "180+1"]
[EndTime "10:27:41 PDT"]
[Termination "swimmerchess won by resignation"]

1. d4 {[%clk 0:03:00.9]} 1... Nf6 {[%clk 0:02:59.4]} 2. c4 {[%clk 0:02:59.1]}
2... e6 {[%clk 0:02:59.4]} 3. Nc3 {[%clk 0:02:59]} 3... d5 {[%clk 0:02:57.9]} 4.
cxd5 {[%clk 0:02:57.4]} 4... exd5 {[%clk 0:02:58.8]} 5. Bg5 {[%clk 0:02:56.5]}
5... c6 {[%clk 0:02:57.3]} 6. e3 {[%clk 0:02:55.2]} 6... Be7 {[%clk 0:02:56.8]}
7. Bd3 {[%clk 0:02:54.4]} 7... O-O {[%clk 0:02:50.1]} 8. Nge2 {[%clk 0:02:54.8]}
8... Nbd7 {[%clk 0:02:48.3]} 9. O-O {[%clk 0:02:55]} 9... Re8 {[%clk 0:02:46.9]}
10. Qc2 {[%clk 0:02:54.9]} 10... h6 {[%clk 0:02:46.8]} 11. Bh4 {[%clk
0:02:51.3]} 11... Nf8 {[%clk 0:02:46.4]} 12. Rad1 {[%clk 0:02:40.5]} 12... Ne6
{[%clk 0:02:46]} 13. f3 {[%clk 0:02:36]} 13... Ng5 {[%clk 0:02:40.6]} 14. Bf2
{[%clk 0:02:34.7]} 14... Bd6 {[%clk 0:02:38.7]} 15. Ng3 {[%clk 0:02:16.9]} 15...
Be6 {[%clk 0:02:31.7]} 16. Nf5 {[%clk 0:02:15.1]} 16... Bxf5 {[%clk 0:02:23]}
17. Bxf5 {[%clk 0:02:13]} 17... Bc7 {[%clk 0:02:22.9]} 18. Rfe1 {[%clk 0:01:54]}
18... Qd6 {[%clk 0:02:20.9]} 19. Bg3 {[%clk 0:01:52.2]} 19... Qe7 {[%clk
0:02:21.3]} 20. Bf2 {[%clk 0:01:48.6]} 20... g6 {[%clk 0:02:08.5]} 21. Bd3
{[%clk 0:01:44.4]} 21... h5 {[%clk 0:02:08.1]} 22. Bh4 {[%clk 0:01:36.4]} 22...
Ngh7 {[%clk 0:02:00.4]} 23. e4 {[%clk 0:01:31.5]} 23... dxe4 {[%clk 0:01:56.9]}
24. Nxe4 {[%clk 0:01:27.9]} 24... Qb4 {[%clk 0:01:19.2]} 25. Nxf6+ {[%clk
0:00:47.3]} 25... Nxf6 {[%clk 0:01:16.8]} 26. Bxg6 {[%clk 0:00:46.9]} 26...
Rxe1+ {[%clk 0:01:10.2]} 27. Bxe1 {[%clk 0:00:45.4]} 27... Qe7 {[%clk 0:01:04]}
28. Bf5 {[%clk 0:00:40.2]} 28... Kh8 {[%clk 0:01:02.3]} 29. Qf2 {[%clk
0:00:35.7]} 29... Rg8 {[%clk 0:00:56.9]} 30. Qh4 {[%clk 0:00:33.6]} 30... Bd8
{[%clk 0:00:40.5]} 31. Bf2 {[%clk 0:00:29.9]} 31... Qe2 {[%clk 0:00:38.4]} 32.
Rb1 {[%clk 0:00:25.4]} 32... Qxf3 {[%clk 0:00:38.4]} 33. Bh3 {[%clk 0:00:22.2]}
33... Qd3 {[%clk 0:00:30.2]} 34. Rf1 {[%clk 0:00:20]} 34... Rg6 {[%clk
0:00:23.3]} 35. Kh1 {[%clk 0:00:20]} 35... Kg7 {[%clk 0:00:23.4]} 36. Qf4 {[%clk
0:00:20]} 36... Qxf1+ {[%clk 0:00:23.3]} 0-1

[Event "*** SCC Grand Prix: Titled Tuesday Blitz"]
[Site "Chess.com"]
[Date "2020.07.21"]
[Round "3"]
[White "GelmanAlexander"]
[Black "KingCrusher275"]
[Result "0-1"]
[WhiteElo "2581"]
[BlackElo "2390"]
[TimeControl "180+1"]
[EndTime "10:27:42 PDT"]
[Termination "KingCrusher275 won by resignation"]

1. c4 {[%clk 0:03:00.9]} 1... e6 {[%clk 0:02:59.9]} 2. Nf3 {[%clk 0:03:00.8]}
2... d5 {[%clk 0:02:58.3]} 3. d3 {[%clk 0:03:00.2]} 3... Nf6 {[%clk 0:02:58.6]}
4. Nbd2 {[%clk 0:02:59.8]} 4... Be7 {[%clk 0:02:58.3]} 5. b3 {[%clk 0:02:58.7]}
5... O-O {[%clk 0:02:58.1]} 6. Bb2 {[%clk 0:02:59.3]} 6... c5 {[%clk 0:02:57.1]}
7. e3 {[%clk 0:02:59.7]} 7... b6 {[%clk 0:02:57.2]} 8. Rg1 {[%clk 0:02:58.5]}
8... Nc6 {[%clk 0:02:51.8]} 9. g4 {[%clk 0:02:58.8]} 9... Bb7 {[%clk 0:02:44.8]}
10. g5 {[%clk 0:02:58.7]} 10... Nd7 {[%clk 0:02:41.1]} 11. h4 {[%clk 0:02:58.7]}
11... d4 {[%clk 0:02:32.6]} 12. a3 {[%clk 0:02:55]} 12... Qc7 {[%clk 0:01:44.7]}
13. Qe2 {[%clk 0:02:50.6]} 13... a6 {[%clk 0:01:11.6]} 14. h5 {[%clk 0:02:44.7]}
14... e5 {[%clk 0:00:43.7]} 15. Bh3 {[%clk 0:02:41.6]} 15... g6 {[%clk
0:00:36.6]} 16. Ne4 {[%clk 0:02:35.9]} 16... Na5 {[%clk 0:00:31.1]} 17. Bxd7
{[%clk 0:02:31.5]} 17... Bxe4 {[%clk 0:00:29.1]} 18. dxe4 {[%clk 0:02:30.4]}
18... Qxd7 {[%clk 0:00:28.8]} 19. Nxe5 {[%clk 0:02:28]} 19... Qe6 {[%clk
0:00:28.9]} 20. exd4 {[%clk 0:02:10.8]} 20... cxd4 {[%clk 0:00:26.2]} 21. Ng4
{[%clk 0:02:07.3]} 21... Bxg5 {[%clk 0:00:22.1]} 22. Rg3 {[%clk 0:01:53.9]}
22... Rae8 {[%clk 0:00:20]} 23. e5 {[%clk 0:01:39.4]} 23... f5 {[%clk
0:00:17.9]} 24. Nh2 {[%clk 0:01:17.7]} 24... Bf4 {[%clk 0:00:18.3]} 25. Rh3
{[%clk 0:01:13.2]} 25... g5 {[%clk 0:00:17.2]} 26. Bxd4 {[%clk 0:01:09.9]} 26...
g4 {[%clk 0:00:14.4]} 27. Nxg4 {[%clk 0:00:51.5]} 27... fxg4 {[%clk 0:00:12.5]}
28. Rh4 {[%clk 0:00:52]} 28... Kh8 {[%clk 0:00:11]} 29. Rxg4 {[%clk 0:00:50.7]}
29... Bxe5 {[%clk 0:00:11.2]} 30. Re4 {[%clk 0:00:50]} 30... Nc6 {[%clk
0:00:09.7]} 31. Bxe5+ {[%clk 0:00:45.4]} 31... Nxe5 {[%clk 0:00:07.8]} 32. O-O-O
{[%clk 0:00:43.8]} 32... Nd3+ {[%clk 0:00:08.2]} 33. Rxd3 {[%clk 0:00:36.6]}
33... Qxe4 {[%clk 0:00:08.3]} 34. Re3 {[%clk 0:00:35.9]} 34... Qh1+ {[%clk
0:00:06.9]} 35. Kb2 {[%clk 0:00:34.4]} 35... Rxe3 {[%clk 0:00:07.2]} 36. Qxe3
{[%clk 0:00:34.8]} 36... Qf3 {[%clk 0:00:07.5]} 37. Qe5+ {[%clk 0:00:34.5]}
37... Qf6 {[%clk 0:00:07.6]} 38. f4 {[%clk 0:00:31.8]} 38... Qxe5+ {[%clk
0:00:07.7]} 39. fxe5 {[%clk 0:00:32.5]} 39... Re8 {[%clk 0:00:08.6]} 40. Kc3
{[%clk 0:00:33]} 40... Rxe5 {[%clk 0:00:09.3]} 41. b4 {[%clk 0:00:33.4]} 41...
Rxh5 {[%clk 0:00:10]} 42. Kd4 {[%clk 0:00:34]} 42... Kg7 {[%clk 0:00:09.9]} 43.
c5 {[%clk 0:00:34.5]} 43... bxc5+ {[%clk 0:00:10.8]} 44. bxc5 {[%clk 0:00:35.3]}
44... Kf7 {[%clk 0:00:10.8]} 45. c6 {[%clk 0:00:35.7]} 45... Ke7 {[%clk
0:00:10.9]} 46. c7 {[%clk 0:00:35.8]} 46... Kd7 {[%clk 0:00:11.4]} 0-1

[Event "*** SCC Grand Prix: Titled Tuesday Blitz"]
[Site "Chess.com"]
[Date "2020.07.21"]
[Round "3"]
[White "Chessdemon2019"]
[Black "bascheyaro"]
[Result "0-1"]
[WhiteElo "2361"]
[BlackElo "2726"]
[TimeControl "180+1"]
[EndTime "10:27:43 PDT"]
[Termination "bascheyaro won by checkmate"]

1. e4 {[%clk 0:03:00.9]} 1... e6 {[%clk 0:02:57.8]} 2. d4 {[%clk 0:02:59.5]}
2... d5 {[%clk 0:02:57.9]} 3. Nc3 {[%clk 0:02:59.3]} 3... Bb4 {[%clk 0:02:57.6]}
4. Ne2 {[%clk 0:02:59]} 4... Nf6 {[%clk 0:02:57.6]} 5. e5 {[%clk 0:02:58.9]}
5... Ne4 {[%clk 0:02:57.9]} 6. g3 {[%clk 0:02:50.3]} 6... c5 {[%clk 0:02:57.2]}
7. a3 {[%clk 0:02:49.2]} 7... Qa5 {[%clk 0:02:56.4]} 8. Bd2 {[%clk 0:02:28.3]}
8... Bxc3 {[%clk 0:02:55.9]} 9. Bxc3 {[%clk 0:02:28.4]} 9... Nxc3 {[%clk
0:02:55.9]} 10. bxc3 {[%clk 0:02:28]} 10... Nc6 {[%clk 0:02:55.6]} 11. Qd2
{[%clk 0:02:25]} 11... b6 {[%clk 0:02:53.5]} 12. Bg2 {[%clk 0:02:24.9]} 12...
Ba6 {[%clk 0:02:53.3]} 13. O-O {[%clk 0:02:05.2]} 13... Bxe2 {[%clk 0:02:52.4]}
14. Qxe2 {[%clk 0:02:05.4]} 14... Qxc3 {[%clk 0:02:52.6]} 15. dxc5 {[%clk
0:02:05.9]} 15... Qxc5 {[%clk 0:02:52.3]} 16. c4 {[%clk 0:02:05.1]} 16... dxc4
{[%clk 0:02:52.1]} 17. Rac1 {[%clk 0:02:04.2]} 17... b5 {[%clk 0:02:49.1]} 18.
a4 {[%clk 0:02:01.1]} 18... Rc8 {[%clk 0:02:49.2]} 19. axb5 {[%clk 0:02:00.5]}
19... Nd4 {[%clk 0:02:49.6]} 20. Qa2 {[%clk 0:01:50.7]} 20... O-O {[%clk
0:02:48.7]} 21. Rfe1 {[%clk 0:01:38.9]} 21... Nxb5 {[%clk 0:02:45.7]} 22. Bf1
{[%clk 0:01:38.3]} 22... c3 {[%clk 0:02:44.2]} 23. Qa5 {[%clk 0:01:36.8]} 23...
Nd4 {[%clk 0:02:44.3]} 24. Qxc5 {[%clk 0:01:32]} 24... Rxc5 {[%clk 0:02:45.2]}
25. Re3 {[%clk 0:01:31.3]} 25... Rfc8 {[%clk 0:02:37.6]} 26. Rd3 {[%clk
0:01:28]} 26... Nb3 {[%clk 0:02:34.6]} 27. Rc2 {[%clk 0:01:26.7]} 27... a5
{[%clk 0:02:33.3]} 28. Rd7 {[%clk 0:01:21.8]} 28... Rxe5 {[%clk 0:02:33.3]} 29.
Rxc3 {[%clk 0:01:14.2]} 29... Nc5 {[%clk 0:02:28.5]} 30. Ra7 {[%clk 0:01:14.1]}
30... Rf8 {[%clk 0:02:18.6]} 31. Rxa5 {[%clk 0:01:11.7]} 31... Ne4 {[%clk
0:02:09.4]} 32. Rxe5 {[%clk 0:01:10.8]} 32... Nxc3 {[%clk 0:02:09.7]} 33. Bd3
{[%clk 0:01:10.8]} 33... g6 {[%clk 0:02:08.9]} 34. Rc5 {[%clk 0:01:09.8]} 34...
Nd5 {[%clk 0:02:08.9]} 35. Be4 {[%clk 0:01:08.9]} 35... Nf6 {[%clk 0:02:09]} 36.
Bf3 {[%clk 0:01:08.4]} 36... Rd8 {[%clk 0:02:09]} 37. Kg2 {[%clk 0:01:08.2]}
37... Kf8 {[%clk 0:02:08.8]} 38. Rc7 {[%clk 0:01:07.7]} 38... Rd7 {[%clk
0:02:08.9]} 39. Rc8+ {[%clk 0:01:06.4]} 39... Ke7 {[%clk 0:02:08.8]} 40. Ra8
{[%clk 0:01:06.6]} 40... Rc7 {[%clk 0:02:08.5]} 41. h4 {[%clk 0:01:05.1]} 41...
Nd7 {[%clk 0:02:02.2]} 42. h5 {[%clk 0:01:01.1]} 42... g5 {[%clk 0:01:55]} 43.
Be4 {[%clk 0:00:53.4]} 43... f5 {[%clk 0:01:48.8]} 44. Bf3 {[%clk 0:00:47]}
44... g4 {[%clk 0:01:49]} 45. Be2 {[%clk 0:00:46.5]} 45... Nf6 {[%clk
0:01:49.1]} 46. h6 {[%clk 0:00:44.5]} 46... Kf7 {[%clk 0:01:48.3]} 47. Ra6
{[%clk 0:00:40.8]} 47... Ng8 {[%clk 0:01:43.5]} 48. f3 {[%clk 0:00:31]} 48...
Rc2 {[%clk 0:01:41.7]} 49. Kf2 {[%clk 0:00:30]} 49... Nxh6 {[%clk 0:01:39.2]}
50. Ra7+ {[%clk 0:00:24.6]} 50... Kg6 {[%clk 0:01:35.9]} 51. Re7 {[%clk
0:00:24.4]} 51... Rc6 {[%clk 0:01:16.9]} 52. fxg4 {[%clk 0:00:23.1]} 52... fxg4
{[%clk 0:01:17.2]} 53. Bd3+ {[%clk 0:00:22.3]} 53... Nf5 {[%clk 0:01:17.4]} 54.
Rd7 {[%clk 0:00:21.2]} 54... h5 {[%clk 0:01:16.5]} 55. Be4 {[%clk 0:00:19.7]}
55... Ra6 {[%clk 0:01:15.9]} 56. Bd3 {[%clk 0:00:19.3]} 56... Ra2+ {[%clk
0:01:14.7]} 57. Kg1 {[%clk 0:00:19.5]} 57... Kg5 {[%clk 0:01:11.8]} 58. Rd8
{[%clk 0:00:17.1]} 58... Nxg3 {[%clk 0:01:11.6]} 59. Rg8+ {[%clk 0:00:17.3]}
59... Kh4 {[%clk 0:01:11.7]} 60. Bf1 {[%clk 0:00:15.3]} 60... Nxf1 {[%clk
0:01:11.2]} 61. Kxf1 {[%clk 0:00:15.3]} 61... Kg3 {[%clk 0:01:11.7]} 62. Kg1
{[%clk 0:00:15.7]} 62... Ra1# {[%clk 0:01:11.8]} 0-1

[Event "*** SCC Grand Prix: Titled Tuesday Blitz"]
[Site "Chess.com"]
[Date "2020.07.21"]
[Round "3"]
[White "vanea_03"]
[Black "Zhani-Z"]
[Result "1-0"]
[WhiteElo "2706"]
[BlackElo "2419"]
[TimeControl "180+1"]
[EndTime "10:27:44 PDT"]
[Termination "vanea_03 won by checkmate"]

1. d4 {[%clk 0:03:00.9]} 1... Nf6 {[%clk 0:02:59.5]} 2. c4 {[%clk 0:03:01.3]}
2... e6 {[%clk 0:02:59.6]} 3. g3 {[%clk 0:03:01.5]} 3... Bb4+ {[%clk 0:02:56.1]}
4. Bd2 {[%clk 0:03:01.3]} 4... a5 {[%clk 0:02:52.5]} 5. Bg2 {[%clk 0:03:01]}
5... d6 {[%clk 0:02:51.4]} 6. e3 {[%clk 0:03:00.5]} 6... e5 {[%clk 0:02:48.2]}
7. Ne2 {[%clk 0:03:00.8]} 7... O-O {[%clk 0:02:47.5]} 8. O-O {[%clk 0:03:00.7]}
8... Bxd2 {[%clk 0:02:43.1]} 9. Qxd2 {[%clk 0:03:01.1]} 9... Qe7 {[%clk
0:02:37.2]} 10. Nbc3 {[%clk 0:03:01.2]} 10... Re8 {[%clk 0:02:34.7]} 11. h3
{[%clk 0:03:00.4]} 11... c6 {[%clk 0:02:32.7]} 12. g4 {[%clk 0:02:59.8]} 12...
h6 {[%clk 0:02:32]} 13. Ng3 {[%clk 0:02:58.9]} 13... a4 {[%clk 0:01:50.2]} 14.
f4 {[%clk 0:02:38]} 14... exd4 {[%clk 0:01:43.1]} 15. exd4 {[%clk 0:02:37.6]}
15... a3 {[%clk 0:01:35.6]} 16. Rae1 {[%clk 0:02:29.6]} 16... Qd8 {[%clk
0:01:35]} 17. b3 {[%clk 0:02:26.7]} 17... Rxe1 {[%clk 0:01:14.3]} 18. Rxe1
{[%clk 0:02:27.6]} 18... d5 {[%clk 0:01:13.1]} 19. g5 {[%clk 0:02:07.8]} 19...
hxg5 {[%clk 0:01:11.9]} 20. fxg5 {[%clk 0:02:08.5]} 20... Ne4 {[%clk 0:01:08.5]}
21. Ncxe4 {[%clk 0:02:03.8]} 21... dxe4 {[%clk 0:01:07.7]} 22. Nxe4 {[%clk
0:01:54.8]} 22... Bf5 {[%clk 0:01:06.3]} 23. Ng3 {[%clk 0:01:50.6]} 23... Bg6
{[%clk 0:01:04.3]} 24. h4 {[%clk 0:01:50.1]} 24... Na6 {[%clk 0:01:02.4]} 25. h5
{[%clk 0:01:48.7]} 25... Bh7 {[%clk 0:01:02.7]} 26. d5 {[%clk 0:01:25]} 26...
Qd6 {[%clk 0:01:00]} 27. Qf2 {[%clk 0:01:21.7]} 27... Nb4 {[%clk 0:00:47.3]} 28.
Rf1 {[%clk 0:01:16.6]} 28... Rf8 {[%clk 0:00:40.4]} 29. c5 {[%clk 0:01:05.1]}
29... Qd8 {[%clk 0:00:40.2]} 30. dxc6 {[%clk 0:00:47.3]} 30... bxc6 {[%clk
0:00:38.3]} 31. Qf4 {[%clk 0:00:39.8]} 31... Nxa2 {[%clk 0:00:29]} 32. h6 {[%clk
0:00:39.4]} 32... Qe7 {[%clk 0:00:12.6]} 33. hxg7 {[%clk 0:00:36.2]} 33... Kxg7
{[%clk 0:00:13.5]} 34. Nh5+ {[%clk 0:00:32.8]} 34... Kg8 {[%clk 0:00:09.9]} 35.
Nf6+ {[%clk 0:00:32.7]} 35... Kg7 {[%clk 0:00:10]} 36. Qh4 {[%clk 0:00:32.1]}
36... Qe3+ {[%clk 0:00:06.3]} 37. Kh1 {[%clk 0:00:32.4]} 37... Rh8 {[%clk
0:00:05.4]} 38. Qh6# {[%clk 0:00:32.1]} 1-0

[Event "*** SCC Grand Prix: Titled Tuesday Blitz"]
[Site "Chess.com"]
[Date "2020.07.21"]
[Round "3"]
[White "Makswolf200817"]
[Black "QuintilianoR"]
[Result "0-1"]
[WhiteElo "2465"]
[BlackElo "2680"]
[TimeControl "180+1"]
[EndTime "10:27:45 PDT"]
[Termination "QuintilianoR won by resignation"]

1. d4 {[%clk 0:03:00.9]} 1... d5 {[%clk 0:02:59.5]} 2. c4 {[%clk 0:03:00.7]}
2... c6 {[%clk 0:02:59.9]} 3. Nf3 {[%clk 0:02:56.6]} 3... Nf6 {[%clk 0:02:59.8]}
4. Nc3 {[%clk 0:02:47.8]} 4... dxc4 {[%clk 0:02:59.1]} 5. e3 {[%clk 0:02:45.2]}
5... b5 {[%clk 0:02:57.5]} 6. a4 {[%clk 0:02:44.5]} 6... b4 {[%clk 0:02:57.3]}
7. Na2 {[%clk 0:02:41]} 7... e6 {[%clk 0:02:56.7]} 8. Bxc4 {[%clk 0:02:40.6]}
8... Bb7 {[%clk 0:02:56.1]} 9. Bd2 {[%clk 0:02:40.1]} 9... a5 {[%clk 0:02:55.5]}
10. O-O {[%clk 0:02:39.4]} 10... Nbd7 {[%clk 0:02:55]} 11. Nc1 {[%clk
0:02:38.8]} 11... c5 {[%clk 0:02:44]} 12. Nb3 {[%clk 0:02:37.4]} 12... Be7
{[%clk 0:02:41.1]} 13. Rc1 {[%clk 0:02:34.3]} 13... Rc8 {[%clk 0:02:11.8]} 14.
Qe2 {[%clk 0:02:28.6]} 14... O-O {[%clk 0:02:11]} 15. Rfd1 {[%clk 0:02:27.5]}
15... Qb6 {[%clk 0:02:10]} 16. Be1 {[%clk 0:02:23.1]} 16... Rfd8 {[%clk
0:02:08.4]} 17. Bb5 {[%clk 0:02:15.5]} 17... Bd5 {[%clk 0:01:59.3]} 18. Nbd2
{[%clk 0:02:06.1]} 18... cxd4 {[%clk 0:01:55.8]} 19. Nxd4 {[%clk 0:02:04.6]}
19... Nc5 {[%clk 0:01:54.2]} 20. f3 {[%clk 0:02:01.2]} 20... g6 {[%clk
0:01:44.2]} 21. Bf2 {[%clk 0:01:59.4]} 21... e5 {[%clk 0:01:41.6]} 22. e4 {[%clk
0:01:48.6]} 22... exd4 {[%clk 0:01:08.3]} 23. exd5 {[%clk 0:01:47.7]} 23... Nxd5
{[%clk 0:01:07.2]} 24. Nc4 {[%clk 0:01:43.5]} 24... Qa7 {[%clk 0:00:54.6]} 25.
Bxd4 {[%clk 0:01:39.9]} 25... Bf6 {[%clk 0:00:41.5]} 26. Bf2 {[%clk 0:01:09.3]}
26... Nf4 {[%clk 0:00:37]} 27. Qc2 {[%clk 0:01:04.8]} 27... Nfe6 {[%clk
0:00:35.9]} 28. Rxd8+ {[%clk 0:01:00.8]} 28... Rxd8 {[%clk 0:00:35.5]} 29. Rd1
{[%clk 0:01:01.1]} 29... Bd4 {[%clk 0:00:33.4]} 30. Kf1 {[%clk 0:00:52.1]} 30...
Bxf2 {[%clk 0:00:30.2]} 31. Rxd8+ {[%clk 0:00:52.5]} 31... Nxd8 {[%clk
0:00:31.1]} 32. Qxf2 {[%clk 0:00:52.5]} 32... Nde6 {[%clk 0:00:31.1]} 33. Qe3
{[%clk 0:00:50.2]} 33... Qc7 {[%clk 0:00:29.5]} 34. g3 {[%clk 0:00:49]} 34...
Nxa4 {[%clk 0:00:29.1]} 35. Qe4 {[%clk 0:00:40.3]} 35... Nb6 {[%clk 0:00:25.5]}
36. Nxa5 {[%clk 0:00:34]} 36... Qc1+ {[%clk 0:00:23.1]} 37. Qe1 {[%clk
0:00:31.1]} 37... Qxb2 {[%clk 0:00:20.9]} 38. Nc4 {[%clk 0:00:30.7]} 38... Nxc4
{[%clk 0:00:20.5]} 39. Bxc4 {[%clk 0:00:31.6]} 39... Qxh2 {[%clk 0:00:20.3]} 40.
Bxe6 {[%clk 0:00:29.3]} 40... Qh1+ {[%clk 0:00:20.2]} 41. Kf2 {[%clk 0:00:27.3]}
41... Qxe1+ {[%clk 0:00:21.1]} 42. Kxe1 {[%clk 0:00:27.9]} 42... fxe6 {[%clk
0:00:21.7]} 43. Kd2 {[%clk 0:00:28.8]} 43... g5 {[%clk 0:00:22]} 44. Kc2 {[%clk
0:00:29.3]} 44... h5 {[%clk 0:00:22.1]} 0-1

[Event "*** SCC Grand Prix: Titled Tuesday Blitz"]
[Site "Chess.com"]
[Date "2020.07.21"]
[Round "3"]
[White "maciejos95"]
[Black "Harsha_Bharathakoti"]
[Result "0-1"]
[WhiteElo "2488"]
[BlackElo "2760"]
[TimeControl "180+1"]
[EndTime "10:27:46 PDT"]
[Termination "Harsha_Bharathakoti won by resignation"]

1. e4 {[%clk 0:03:00.9]} 1... c5 {[%clk 0:03:00.5]} 2. c3 {[%clk 0:03:00.6]}
2... Nf6 {[%clk 0:02:59.2]} 3. e5 {[%clk 0:03:00.5]} 3... Nd5 {[%clk 0:02:59.7]}
4. d4 {[%clk 0:03:00.7]} 4... e6 {[%clk 0:03:00.2]} 5. Nf3 {[%clk 0:02:59.6]}
5... cxd4 {[%clk 0:02:58.8]} 6. cxd4 {[%clk 0:02:57.9]} 6... d6 {[%clk
0:02:59.7]} 7. Bc4 {[%clk 0:02:57.3]} 7... Bd7 {[%clk 0:02:59.8]} 8. Bxd5 {[%clk
0:02:51.9]} 8... exd5 {[%clk 0:03:00.7]} 9. Nc3 {[%clk 0:02:49.5]} 9... dxe5
{[%clk 0:02:13.2]} 10. Nxe5 {[%clk 0:02:47.9]} 10... Be6 {[%clk 0:02:13.6]} 11.
O-O {[%clk 0:02:32]} 11... Nd7 {[%clk 0:02:13.1]} 12. Bf4 {[%clk 0:02:20]} 12...
Be7 {[%clk 0:02:02]} 13. Qf3 {[%clk 0:02:07.2]} 13... Nf6 {[%clk 0:01:00.9]} 14.
Rac1 {[%clk 0:01:57.2]} 14... O-O {[%clk 0:00:40.5]} 15. Nb5 {[%clk 0:01:31.8]}
15... Qb6 {[%clk 0:00:33.5]} 16. Nc7 {[%clk 0:01:26.7]} 16... Rac8 {[%clk
0:00:33.7]} 17. Nxe6 {[%clk 0:01:26.6]} 17... Qxe6 {[%clk 0:00:34.4]} 18. Bg5
{[%clk 0:01:09.5]} 18... Ne4 {[%clk 0:00:28.3]} 19. Bxe7 {[%clk 0:01:06.3]}
19... Qxe7 {[%clk 0:00:29.2]} 20. Qg4 {[%clk 0:00:43.6]} 20... Rxc1 {[%clk
0:00:24.7]} 21. Rxc1 {[%clk 0:00:43.1]} 21... Qb4 {[%clk 0:00:24.8]} 22. Nxf7
{[%clk 0:00:32.1]} 22... Rxf7 {[%clk 0:00:16.1]} 23. Rc8+ {[%clk 0:00:30.4]}
23... Rf8 {[%clk 0:00:16.5]} 24. Qe6+ {[%clk 0:00:28.8]} 24... Kh8 {[%clk
0:00:16.7]} 25. Rxf8+ {[%clk 0:00:29]} 25... Qxf8 {[%clk 0:00:17.6]} 26. f3
{[%clk 0:00:28.8]} 26... Nf6 {[%clk 0:00:16.7]} 27. h3 {[%clk 0:00:24.4]} 27...
Qe8 {[%clk 0:00:15.6]} 28. Qd6 {[%clk 0:00:20.6]} 28... h6 {[%clk 0:00:16.2]}
29. Qc7 {[%clk 0:00:19.2]} 29... Qe3+ {[%clk 0:00:14.7]} 30. Kh2 {[%clk
0:00:19.6]} 30... Qxd4 {[%clk 0:00:14.7]} 31. Qxb7 {[%clk 0:00:20.1]} 31... Qf4+
{[%clk 0:00:12.6]} 32. Kg1 {[%clk 0:00:20.4]} 32... d4 {[%clk 0:00:12.2]} 33.
Qxa7 {[%clk 0:00:20.1]} 33... d3 {[%clk 0:00:10.2]} 34. Qa8+ {[%clk 0:00:20.5]}
34... Kh7 {[%clk 0:00:10.6]} 35. Qd8 {[%clk 0:00:21.1]} 35... Qe3+ {[%clk
0:00:10.9]} 36. Kf1 {[%clk 0:00:20.7]} 36... d2 {[%clk 0:00:09.1]} 0-1